bitfinex/quotes_SOLUSD_20250917
["timestamp","ask_amount","ask_price","bid_price","bid_amount"]
[1758130902046,14.82799525,236.04,235.87,5.69547389]
[1758130902047,5.69547389,235.94,235.87,5.69547389]
[1758130902339,5.69547389,235.89,235.84,4.2400315]
[1758130902543,5.69547389,235.89,235.84,4.9400315]
[1758130902768,5.69547389,235.88,235.82,4.24040994]
[1758130903212,5.69547389,235.86,235.81,0.7]
[1758130903412,5.69547389,235.98,235.76,6.39547389]
[1758130903413,5.69547389,235.83,235.76,6.39547389]
[1758130903629,5.69547389,235.83,235.76,0.7]
[1758130903843,61.92,235.97,235.76,0.7]
[1758130903844,0.59,235.96,235.82,5.69547389]
[1758130904037,0.59,235.96,235.77,4.24142172]
[1758130904038,0.59,235.99,235.83,64.0]
[1758130904243,6.28547389,235.99,235.92,5.69547389]
[1758130904419,0.59,235.99,235.89,0.7]
[1758130904615,0.59,235.99,235.91,5.69547389]
[1758130904829,0.59,236.03,235.95,5.69547389]
[1758130905015,4.23579531,236.09,235.99,5.69547389]
[1758130905217,5.69547389,236.04,235.97,5.69547389]
[1758130905429,0.59,236.03,235.96,5.69547389]
[1758130905620,5.69547389,236.0,235.92,0.7]
[1758130905827,5.69547389,235.98,235.93,4.23854533]
[1758130906152,13.59559401,236.08,235.93,4.23854533]
[1758130906153,5.69547389,235.96,235.93,4.23854533]
[1758130906356,5.69547389,235.97,235.93,4.23854533]
[1758130906543,5.69547389,236.01,235.94,6.39547389]
[1758130906745,5.69547389,236.04,235.97,5.69547389]
[1758130906927,5.69547389,236.03,235.97,6.39547389]
[1758130907132,4.29535872,236.11,235.93,15.25876318]
[1758130907133,5.69547389,236.02,235.95,5.69547389]
[1758130907343,5.69547389,236.0,235.94,0.7]
[1758130907530,5.69547389,236.02,235.96,5.69547389]
[1758130907732,5.69547389,236.03,235.97,4.23782684]
[1758130908449,0.59,236.08,236.0,5.69547389]
[1758130908664,5.69547389,236.07,236.01,5.69547389]
[1758130908963,5.69547389,236.08,236.01,5.69547389]
[1758130909169,0.65,236.11,236.0,0.7]
[1758130909170,5.69547389,236.07,236.0,6.39547389]
[1758130909360,5.69547389,236.06,236.0,5.69547389]
[1758130909557,5.69547389,236.06,235.97,14.83239394]
[1758130909868,4.29534829,236.11,236.05,5.69547389]
[1758130909869,0.06,236.11,236.05,5.69547389]
[1758130910055,20.12499776,236.32,235.99,14.8311369]
[1758130910056,5.69547389,236.35,236.12,26.0]
[1758130910288,5.69547389,236.35,236.34,5.69547389]
[1758130910429,2.21215333,236.56,236.48,5.69547389]
[1758130910627,2.21215333,236.56,236.41,37.16]
[1758130910828,20.0,236.67,236.51,5.69547389]
[1758130910829,0.67,236.61,236.51,5.69547389]
[1758130911030,0.67,236.61,236.41,37.16]
[1758130911031,0.67,236.6,236.41,26.0]
[1758130911268,5.69547389,236.53,236.44,5.69547389]
[1758130911473,0.67,236.54,236.4,2.20983153]
[1758130911656,5.69547389,236.51,236.41,5.69547389]
[1758130911861,0.67,236.5,236.43,5.69547389]
[1758130912064,0.67,236.5,236.42,5.69547389]
[1758130912271,14.79613699,236.55,236.4,2.20983153]
[1758130912272,6.36547389,236.49,236.4,7.90530542]
[1758130912437,14.79613699,236.55,236.4,2.20983153]
[1758130912438,5.69547389,236.45,236.4,2.20983153]
[1758130912646,0.67,236.44,236.4,2.20983153]
[1758130912857,0.67,236.43,236.4,2.20983153]
[1758130913063,0.67,236.42,236.4,2.20983153]
[1758130913275,0.67,236.44,236.4,2.20983153]
[1758130913449,63.08,236.54,236.4,2.20983153]
[1758130913450,0.67,236.47,236.4,2.20983153]
[1758130914266,4.89896607,236.47,236.4,2.20983153]
[1758130915554,6.36547389,236.51,236.43,5.69547389]
[1758130915757,0.67,236.51,236.43,5.69547389]
[1758130915942,10.59373867,236.51,236.4,2.20983153]
[1758130916141,4.89826478,236.51,236.42,5.69547389]
[1758130916362,10.59373867,236.51,236.42,5.69547389]
[1758130916555,6.36547389,236.51,236.35,14.80854663]
[1758130916753,10.59374078,236.51,236.42,5.69547389]
[1758130916970,0.67,236.51,236.38,26.0]
[1758130917270,0.67,236.51,236.43,5.69547389]
[1758130918046,4.89829779,236.51,236.38,30.23037259]
[1758130918268,10.59377168,236.51,236.38,30.23037259]
[1758130918470,5.69547389,236.51,236.38,30.23037259]
[1758130918678,6.37547389,236.51,236.36,4.65386696]
[1758130918884,0.68,236.5,236.41,5.69547389]
[1758130919172,5.69547389,236.49,236.41,5.69547389]
[1758130919351,5.69547389,236.49,236.34,30.23111297]
[1758130919551,0.68,236.48,236.4,5.69547389]
[1758130919771,0.68,236.48,236.35,36.88]
[1758130919772,0.68,236.48,236.42,5.69547389]
[1758130920153,0.68,236.48,236.35,36.88]
[1758130920154,0.68,236.48,236.36,4.23083432]
[1758130920461,4.90826196,236.51,236.42,5.69547389]
[1758130920643,0.68,236.51,236.39,26.0]
[1758130920849,4.22791071,236.53,236.45,5.69547389]
[1758130921144,0.68,236.54,236.45,5.69547389]
[1758130921355,6.37547389,236.54,236.45,5.69547389]
[1758130921564,5.69547389,236.52,236.38,26.0]
[1758130921770,3.88691034,236.52,236.44,3.88691034]
[1758130921973,15.47673881,236.54,236.44,3.88691034]
[1758130922270,3.88691034,236.53,236.44,3.88691034]
[1758130922447,4.90770187,236.54,236.44,3.88691034]
[1758130922651,3.88691034,236.46,236.27,57.92161187]
[1758130922850,0.68,236.49,236.4,3.88691034]
[1758130923050,0.68,236.49,236.43,3.88691034]
[1758130923268,0.68,236.53,236.46,3.88691034]
[1758130923975,4.22797226,236.52,236.46,3.88691034]
[1758130924159,4.22797226,236.52,236.39,26.0]
[1758130924160,4.58691034,236.51,236.39,26.0]
[1758130924363,0.7,236.5,236.34,40.93119235]
[1758130924562,0.7,236.49,236.38,3.88691034]
[1758130924879,4.58691034,236.48,236.38,3.88691034]
[1758130925071,0.7,236.48,236.39,3.88691034]
[1758130925291,0.7,236.48,236.42,3.88691034]
[1758130925477,0.76,236.52,236.47,3.88691034]
[1758130925979,0.06,236.52,236.47,3.88691034]
[1758130926177,0.7,236.51,236.43,3.88691034]
[1758130926477,0.7,236.51,236.39,4.23015902]
[1758130926478,4.58691034,236.51,236.39,30.23015902]
[1758130926664,0.7,236.51,236.43,3.88691034]
[1758130926987,3.88691034,236.45,236.27,12.705135]
[1758130927284,4.58691034,236.44,236.35,3.88691034]
[1758130927483,0.7,236.44,236.27,4.23237762]
[1758130927781,30.0,236.43,236.35,3.88691034]
[1758130927964,8.11720206,236.4,236.27,14.81349244]
[1758130928274,3.88691034,236.42,236.33,3.88691034]
[1758130928483,30.0,236.43,236.3,26.0]
[1758130928690,3.88691034,236.39,236.3,26.0]
[1758130928854,34.22970731,236.43,236.27,4.65562221]
[1758130928855,30.0,236.38,236.27,8.11928796]
[1758130929067,3.88691034,236.35,236.24,3.88691034]
[1758130929265,3.88691034,236.31,236.19,4.2338795]
[1758130929494,30.0,236.38,236.19,8.12078984]
[1758130929495,3.88691034,236.29,236.19,8.12078984]
[1758130929787,30.0,236.27,236.21,0.6]
[1758130930360,30.7,236.27,236.18,3.88691034]
[1758130930564,30.0,236.27,236.18,3.88691034]
[1758130930767,3.88691034,236.24,236.14,4.23477598]
[1758130930978,30.0,236.21,236.14,8.12168632]
[1758130931290,30.0,236.21,236.2,3.88691034]
[1758130932096,30.0,236.21,236.2,30.23370025]
[1758130932315,4.23061387,236.38,236.21,26.0]
[1758130932603,0.7,236.31,236.22,29.88691034]
[1758130932768,4.2294028,236.44,236.26,3.88691034]
[1758130932966,4.58691034,236.35,236.22,26.0]
[1758130933289,4.58691034,236.35,236.27,3.88691034]
[1758130933672,0.7,236.35,236.23,26.0]
[1758130933884,0.7,236.35,236.28,3.88691034]
[1758130934288,0.7,236.35,236.27,26.0]
[1758130934788,4.58691034,236.35,236.26,3.88691034]
[1758130934993,4.58691034,236.35,236.29,0.6]
[1758130935178,0.7,236.35,236.29,0.6]
[1758130935579,4.58691034,236.37,236.29,0.6]
[1758130935892,4.58691034,236.37,236.24,30.2329834]
[1758130935893,3.88691034,236.31,236.22,3.88691034]
[1758130936098,0.7,236.32,236.23,4.23304031]
[1758130936263,0.7,236.33,236.21,4.23347818]
[1758130936464,0.7,236.32,236.22,26.0]
[1758130936673,0.7,236.32,236.23,3.88691034]
[1758130937107,0.7,236.36,236.27,3.88691034]
[1758130937702,0.7,236.36,236.29,3.88691034]
[1758130937893,0.7,236.39,236.24,26.0]
[1758130938095,0.7,236.39,236.28,29.88691034]
[1758130938096,3.88691034,236.37,236.28,29.88691034]
[1758130938405,4.23022944,236.4,236.29,3.88691034]
[1758130938582,4.93022944,236.4,236.31,3.88691034]
[1758130938783,0.7,236.4,236.31,3.88691034]
[1758130939014,0.7,236.4,236.33,3.88691034]
[1758130939576,3.88691034,236.36,236.27,4.23230733]
[1758130939799,4.58691034,236.35,236.27,26.0]
[1758130940000,3.88691034,236.31,236.23,4.23306134]
[1758130940319,3.88691034,236.31,236.12,20.0]
[1758130940320,3.88691034,236.29,236.19,40.59371599]
[1758130940481,3.88691034,236.27,236.19,44.48062633]
[1758130940808,0.7,236.29,236.19,4.23371599]
[1758130941208,0.7,236.28,236.14,10.58666934]
[1758130941388,3.88691034,236.24,236.15,3.88691034]
[1758130941579,4.58691034,236.24,236.15,3.88691034]
[1758130941779,4.58691034,236.24,236.12,36.34]
[1758130941986,0.7,236.23,236.03,12.88193542]
[1758130942209,3.88691034,236.16,236.07,3.88691034]
[1758130942414,0.7,236.15,236.02,3.88691034]
[1758130942710,3.88691034,236.17,236.08,3.88691034]
[1758130942877,3.88691034,236.17,236.0,3.88691034]
[1758130943077,3.88691034,236.17,236.08,3.88691034]
[1758130943395,3.88691034,236.17,236.07,3.88691034]
[1758130943582,3.88691034,236.15,236.07,4.23603168]
[1758130943781,3.88691034,236.1,235.92,0.03]
[1758130944008,3.88691034,236.08,235.93,28.05490865]
[1758130944217,0.7,236.14,235.92,12.80088274]
[1758130944218,0.7,236.07,235.92,0.03]
[1758130944513,3.88691034,236.01,235.94,3.88691034]
[1758130944882,3.88691034,236.01,235.93,3.88691034]
[1758130945083,0.7,236.02,235.93,3.88691034]
[1758130945406,0.7,236.02,235.95,3.88691034]
[1758130945598,3.88691034,235.99,235.92,0.03]
[1758130946012,3.88691034,236.05,235.98,3.88691034]
[1758130946193,3.88691034,235.99,235.92,0.03]
[1758130946507,3.88691034,235.98,235.92,0.03]
[1758130946710,0.7,235.97,235.92,0.03]
[1758130946923,4.58691034,236.02,235.93,3.88691034]
[1758130947095,0.7,236.02,235.95,3.88691034]
[1758130947401,0.7,236.02,235.92,0.03]
[1758130947402,0.7,236.02,235.97,0.6]
[1758130947584,0.7,236.05,235.98,3.88691034]
[1758130947802,0.7,236.05,235.99,4.23746768]
[1758130948511,3.88691034,236.08,235.99,4.23746768]
[1758130948674,0.7,236.13,236.02,3.88691034]
[1758130948878,36.18,236.23,235.97,0.6]
[1758130948879,3.88691034,236.03,235.97,0.6]
[1758130949080,8.12138805,236.16,235.92,0.03]
[1758130949081,3.88691034,235.98,235.92,0.03]
[1758130949302,3.88691034,235.98,235.92,4.268675]
[1758130949476,3.88691034,235.98,235.93,26.0]
[1758130949477,4.58691034,235.98,235.93,26.0]
[1758130949680,0.7,235.97,235.94,4.23836568]
[1758130950477,0.7,235.96,235.92,30.26863728]
[1758130950702,0.7,235.96,235.92,4.26863728]
[1758130951305,0.7,235.95,235.92,0.03]
[1758130951604,0.7,235.99,235.92,40.8654629]
[1758130951804,0.7,236.04,235.95,29.88691034]
[1758130952010,38.13213273,236.31,235.99,3.88691034]
[1758130952011,0.7,236.07,235.99,3.88691034]
[1758130952682,0.7,236.07,236.01,3.88691034]
[1758130952883,0.7,236.1,236.01,3.88691034]
[1758130953405,0.7,236.1,236.03,3.88691034]
[1758130953613,4.58691034,236.15,236.05,3.88691034]
[1758130953922,4.58691034,236.15,236.06,14.82673896]
[1758130954292,3.88691034,236.14,236.06,14.82673896]
[1758130954486,4.58691034,236.15,236.06,14.82673896]
[1758130954682,0.7,236.15,236.06,14.82673896]
[1758130955088,0.67,236.2,236.09,29.88691034]
[1758130955294,3.88691034,236.19,236.09,29.88691034]
[1758130955611,4.55691034,236.2,236.09,26.0]
[1758130955797,4.55691034,236.2,236.14,26.0]
[1758130955798,0.67,236.2,236.14,26.0]
[1758130956000,4.55691034,236.2,236.11,14.82359916]
[1758130956308,4.55691034,236.2,236.11,40.82359916]
[1758130956508,0.67,236.2,236.13,3.88691034]
[1758130956903,0.67,236.2,236.11,40.82359916]
[1758130957210,4.55691034,236.24,236.16,3.88691034]
[1758130957907,4.55691034,236.24,236.17,4.23423804]
[1758130958417,0.67,236.28,236.18,3.88691034]
[1758130958609,4.55691034,236.28,236.17,50.81983316]
[1758130958805,3.88691034,236.26,236.18,3.88691034]
[1758130959802,3.88691034,236.26,236.17,14.81983316]
[1758130960002,0.67,236.27,236.2,14.81795088]
[1758130960205,0.67,236.27,236.19,26.0]
[1758130960206,3.88691034,236.24,236.16,39.80691034]
[1758130960505,3.88691034,236.24,236.17,26.0]
[1758130960811,4.23223863,236.29,236.0,16.61691034]
[1758130960812,3.88691034,236.19,236.1,3.88691034]
[1758130961230,0.67,236.21,236.06,26.0]
[1758130961231,4.55691034,236.21,236.12,3.88691034]
[1758130961422,0.67,236.21,236.14,3.88691034]
[1758130961610,3.88691034,236.23,236.16,3.88691034]
[1758130961814,3.88691034,236.23,236.14,29.88691034]
[1758130962125,0.67,236.22,236.16,26.0]
[1758130962321,3.88691034,236.21,236.16,26.0]
[1758130962505,4.55691034,236.21,236.16,26.0]
[1758130962843,4.55691034,236.21,236.14,4.23462975]
[1758130963002,4.55691034,236.21,236.15,26.0]
[1758130963404,3.88691034,236.24,236.15,26.0]
[1758130963614,0.67,236.25,236.17,26.0]
[1758130963823,3.94691034,236.26,236.17,26.0]
[1758130963824,0.06,236.26,236.18,3.88691034]
[1758130964016,0.06,236.26,236.19,4.2338795]
[1758130964332,3.88691034,236.25,236.19,14.81857825]
[1758130964538,0.06,236.26,236.19,14.81857825]
[1758130964718,0.06,236.26,236.2,3.88691034]
[1758130965025,0.06,236.26,236.22,26.0]
[1758130965229,0.06,236.26,236.23,3.88691034]
[1758130965609,0.06,236.26,236.22,26.0]
[1758130965806,0.06,236.26,236.16,4.23431335]
[1758130966011,0.67,236.25,236.06,35.78]
[1758130966215,4.55691034,236.25,236.16,3.88691034]
[1758130966534,0.06,236.26,236.18,3.88691034]
[1758130966933,4.55691034,236.25,236.16,3.88691034]
[1758130967129,4.55691034,236.25,236.17,26.0]
[1758130968020,0.67,236.25,236.18,4.23405876]
[1758130968328,0.67,236.24,236.18,4.23405876]
[1758130968534,3.88691034,236.23,236.18,4.23405876]
[1758130968715,0.67,236.22,236.18,4.23405876]
[1758130968913,0.67,236.21,236.16,4.23428794]
[1758130969116,3.88691034,236.23,236.16,4.23428794]
[1758130969630,0.67,236.24,236.16,4.23428794]
[1758130969631,3.88691034,236.21,236.16,4.23428794]
[1758130969839,0.67,236.2,236.14,4.23460953]
[1758130970029,3.88691034,236.19,236.1,35.68]
[1758130970233,3.88691034,236.24,236.14,3.88691034]
[1758130970409,0.67,236.25,236.13,26.0]
[1758130970741,0.67,236.25,236.16,3.88691034]
[1758130970926,0.67,236.25,236.13,26.0]
[1758130971128,0.67,236.25,236.17,3.88691034]
[1758130971522,0.67,236.25,236.13,26.0]
[1758130971724,0.67,236.25,236.16,3.88691034]
[1758130971934,0.67,236.25,236.18,3.88691034]
[1758130972120,0.06,236.26,236.19,14.81857825]
[1758130974940,4.55691034,236.25,236.19,4.2338795]
[1758130975128,0.06,236.26,236.19,4.2338795]
[1758130975333,0.06,236.26,236.19,8.12078984]
[1758130975512,0.06,236.26,236.21,3.88691034]
[1758130975712,0.06,236.26,236.23,3.88691034]
[1758130975928,0.06,236.26,236.24,35.56]
[1758130976131,0.06,236.26,236.23,3.88691034]
[1758130976414,0.06,236.26,236.24,35.54]
[1758130976928,0.06,236.26,236.24,4.2329834]
[1758130977239,0.06,236.26,236.25,35.54]
[1758130977540,0.06,236.26,236.25,39.42691034]
[1758130977853,0.06,236.26,236.25,35.54]
[1758130978620,0.06,236.29,236.25,39.42691034]
[1758130978821,0.06,236.29,236.27,3.88691034]
[1758130979016,0.06,236.29,236.28,4.2322668]
[1758130980311,0.06,236.29,236.28,39.7122668]
[1758130980511,0.06,236.29,236.28,43.59917714]
[1758130980715,0.71,236.37,236.31,26.0]
[1758130981147,0.71,236.41,236.32,18.69733688]
[1758130981336,4.59691034,236.41,236.32,18.69733688]
[1758130981529,0.71,236.4,236.33,35.46]
[1758130981927,4.22958546,236.43,236.33,35.46]
[1758130982141,0.71,236.39,236.33,35.46]
[1758130982451,0.71,236.39,236.32,14.81042654]
[1758130982618,4.59691034,236.38,236.33,35.44]
[1758130982818,4.59691034,236.38,236.32,4.23155044]
[1758130982819,0.71,236.37,236.32,39.67155044]
[1758130983029,3.88691034,236.34,236.27,35.42]
[1758130983326,0.71,236.33,236.27,35.42]
[1758130983522,4.59691034,236.33,236.27,35.42]
[1758130983843,0.71,236.33,236.27,35.42]
[1758130984021,13.59559401,236.48,236.27,41.0842277]
[1758130984226,5.6642277,236.36,236.27,41.0842277]
[1758130984420,0.67,236.36,236.27,35.42]
[1758130984623,10.57223961,236.47,236.3,5.6642277]
[1758130984938,0.67,236.4,236.32,5.6642277]
[1758130985139,0.67,236.4,236.3,26.0]
[1758130985140,0.67,236.43,236.34,14.80917322]
[1758130985359,0.67,236.43,236.35,5.6642277]
[1758130985527,0.67,236.46,236.37,5.6642277]
[1758130985723,21.13376367,236.59,236.39,5.6642277]
[1758130985724,6.3342277,236.49,236.39,5.6642277]
[1758130986244,6.3342277,236.49,236.4,35.44]
[1758130986447,5.6642277,236.49,236.4,35.44]
[1758130986622,5.6642277,236.49,236.41,5.6642277]
[1758130986824,5.6642277,236.49,236.4,35.44]
[1758130987136,0.67,236.5,236.42,14.80416207]
[1758130987543,6.3342277,236.5,236.43,35.4]
[1758130987727,5.6642277,236.46,236.4,4.22994139]
[1758130987926,0.67,236.45,236.4,39.64994139]
[1758130988134,10.56834004,236.56,236.4,39.64994139]
[1758130988135,0.67,236.48,236.4,39.64994139]
[1758130988325,5.6642277,236.45,236.4,39.64994139]
[1758130988646,0.67,236.47,236.4,39.64994139]
[1758130988824,0.67,236.51,236.4,39.64994139]
[1758130989027,0.67,236.51,236.4,50.22523749]
[1758130989248,5.6642277,236.49,236.41,5.6642277]
[1758130989423,0.67,236.53,236.43,26.0]
[1758130989627,5.6642277,236.52,236.43,31.6642277]
[1758130989856,5.6642277,236.5,236.43,26.0]
[1758130990439,5.6642277,236.52,236.44,35.66]
[1758130990638,0.67,236.53,236.44,4.2294028]
[1758130990946,0.67,236.53,236.45,35.66]
[1758130991336,5.6642277,236.52,236.45,35.66]
[1758130991539,0.67,236.59,236.48,5.6642277]
[1758130991751,35.64,236.65,236.48,5.6642277]
[1758130991752,5.6642277,236.55,236.48,5.6642277]
[1758130992048,5.6642277,236.55,236.47,5.6642277]
[1758130992250,0.67,236.56,236.47,5.6642277]
[1758130992423,5.6642277,236.56,236.47,5.6642277]
[1758130992629,5.6642277,236.57,236.5,14.79915432]
[1758130992830,0.67,236.61,236.53,5.6642277]
[1758130993037,0.67,236.61,236.53,41.2642277]
[1758130993440,0.67,236.61,236.52,0.5]
[1758130993742,0.67,236.61,236.53,41.2842277]
[1758130993936,5.6642277,236.6,236.53,5.6642277]
[1758130994155,0.67,236.61,236.52,0.5]
[1758130994454,0.67,236.65,236.53,41.2842277]
[1758130994640,5.6642277,236.62,236.53,41.2842277]
[1758130994839,5.6642277,236.63,236.55,5.6642277]
[1758130995057,0.67,236.65,236.55,5.6642277]
[1758130995253,5.6642277,236.63,236.54,14.79665171]
[1758130995436,5.6642277,236.63,236.55,5.6642277]
[1758130995759,0.67,236.65,236.56,41.2642277]
[1758130996055,5.6642277,236.63,236.57,35.6]
[1758130996224,5.6642277,236.59,236.52,4.22783735]
[1758130996426,5.6642277,236.57,236.53,35.6]
[1758130996632,0.67,236.59,236.53,35.6]
[1758130996823,0.67,236.59,236.52,26.0]
[1758130997026,5.6642277,236.56,236.53,35.6]
[1758130997229,0.67,236.55,236.48,4.22856258]
[1758130997438,5.6642277,236.54,236.48,4.22856258]
[1758130997647,0.67,236.55,236.49,35.6]
[1758130997648,6.3342277,236.55,236.49,35.6]
[1758130997853,0.67,236.55,236.49,35.6]
[1758130998054,5.6642277,236.55,236.49,35.6]
[1758130998446,0.67,236.59,236.49,35.6]
[1758130998754,5.6642277,236.51,236.4,21.15031218]
[1758130998957,4.22739034,236.56,236.42,5.6642277]
[1758130998958,5.6642277,236.5,236.42,5.6642277]
[1758130999127,5.6642277,236.49,236.41,5.6642277]
[1758130999457,0.67,236.58,236.48,5.6642277]
[1758130999667,5.6642277,236.56,236.49,35.56]
[1758130999955,6.3342277,236.56,236.49,35.56]
[1758131000158,6.3342277,236.56,236.42,0.7]
[1758131000159,0.67,236.55,236.47,35.54]
[1758131000368,0.67,236.55,236.39,61.86282942]
[1758131000369,5.6642277,236.49,236.41,5.6642277]
[1758131000672,0.67,236.54,236.42,26.0]
[1758131000955,26.0,236.65,236.51,5.6642277]
[1758131000956,4.22582826,236.64,236.51,5.6642277]
[1758131001160,5.6642277,236.58,236.51,5.6642277]
[1758131001340,5.6642277,236.57,236.5,41.1842277]
[1758131001538,0.67,236.59,236.5,41.1842277]
[1758131001734,5.6642277,236.58,236.51,5.6642277]
[1758131001934,5.6642277,236.58,236.52,5.6642277]
[1758131002134,5.6642277,236.56,236.51,4.22815102]
[1758131002432,20.0,236.72,236.52,26.0]
[1758131002649,0.1,236.85,236.52,26.0]
[1758131002650,0.67,236.69,236.57,5.6642277]
[1758131002967,5.6642277,236.63,236.54,26.0]
[1758131003141,0.67,236.64,236.55,35.5]
[1758131003345,5.6642277,236.63,236.56,5.6642277]
[1758131003662,6.3342277,236.64,236.57,5.6642277]
[1758131003960,5.6642277,236.66,236.55,35.5]
[1758131004154,0.67,236.67,236.6,4.22654268]
[1758131004360,0.67,236.67,236.6,20.4571271]
[1758131004541,4.2247234,236.71,236.62,5.6642277]
[1758131004542,0.67,236.71,236.62,5.6642277]
[1758131004740,5.6642277,236.7,236.63,5.6642277]
[1758131005262,0.67,236.69,236.61,5.6642277]
[1758131005436,6.3342277,236.69,236.62,5.6642277]
[1758131005638,6.3342277,236.69,236.61,35.46]
[1758131005639,5.6642277,236.68,236.63,4.22600684]
[1758131005945,0.67,236.67,236.61,4.22620791]
[1758131006460,0.67,236.66,236.59,4.22657069]
[1758131006771,5.6642277,236.64,236.59,4.22657069]
[1758131007065,0.67,236.63,236.57,30.2269192]
[1758131007260,0.67,236.68,236.58,5.6642277]
[1758131007438,5.6642277,236.65,236.58,5.6642277]
[1758131007638,5.6642277,236.6,236.55,4.22743606]
[1758131007878,5.6642277,236.58,236.53,39.64763609]
[1758131008046,5.6642277,236.57,236.53,4.22763609]
[1758131008251,6.3342277,236.56,236.51,4.22801032]
[1758131008464,6.3342277,236.55,236.48,10.57166744]
[1758131008766,0.67,236.55,236.46,55.88588548]
[1758131008954,5.6642277,236.5,236.46,4.22904508]
[1758131009158,14.79103674,236.63,236.49,5.6642277]
[1758131009348,14.79103674,236.63,236.46,4.22904508]
[1758131009349,5.6642277,236.56,236.46,4.22904508]
[1758131009666,6.3342277,236.55,236.48,4.22868741]
[1758131010054,5.6642277,236.53,236.48,4.22868741]
[1758131010374,6.3342277,236.52,236.48,4.22868741]
[1758131010565,10.56705007,236.59,236.46,10.5726127]
[1758131010566,6.3342277,236.51,236.46,4.22888371]
[1758131010785,5.6642277,236.48,236.36,13.59559401]
[1758131011084,5.6642277,236.44,236.38,12.70405895]
[1758131011266,14.79602689,236.55,236.36,14.80792012]
[1758131011267,6.3342277,236.43,236.36,14.80792012]
[1758131011437,5.6642277,236.45,236.38,5.6642277]
[1758131011658,0.67,236.53,236.45,4.22922393]
[1758131012089,0.67,236.53,236.48,5.6642277]
[1758131012275,4.22709422,236.57,236.5,5.6642277]
[1758131012276,0.67,236.57,236.5,5.6642277]
[1758131012466,6.3342277,236.57,236.5,5.6642277]
[1758131012956,6.3342277,236.57,236.45,40.80228377]
[1758131013159,13.59559401,236.65,236.45,40.80228377]
[1758131013160,5.6642277,236.55,236.45,30.22922393]
[1758131013358,0.67,236.54,236.48,5.6642277]
[1758131013582,5.6642277,236.57,236.51,4.22815102]
[1758131013786,0.67,236.58,236.51,4.22815102]
[1758131013787,5.6642277,236.55,236.51,4.22815102]
[1758131013956,0.65,236.54,236.51,4.22815102]
[1758131015197,5.6642277,236.52,236.42,5.6642277]
[1758131015419,5.6642277,236.49,236.41,35.56]
[1758131015601,5.6642277,236.5,236.41,61.56]
[1758131015769,0.65,236.51,236.44,4.2294028]
[1758131016161,5.6642277,236.5,236.44,4.2294028]
[1758131016403,6.3142277,236.51,236.44,20.46713752]
[1758131016773,5.6642277,236.5,236.44,14.80290982]
[1758131016976,5.6642277,236.47,236.44,4.2294028]
[1758131017206,5.6642277,236.45,236.35,14.80854663]
[1758131017373,5.6642277,236.39,236.35,14.80854663]
[1758131017568,5.6642277,236.39,236.35,4.23101332]
[1758131017569,5.6642277,236.38,236.35,4.23101332]
[1758131017786,5.6642277,236.38,236.32,4.23155044]
[1758131017995,5.6642277,236.38,236.32,14.81042654]
[1758131018196,0.65,236.39,236.32,20.47465424]
[1758131018397,0.65,236.41,236.32,14.81042654]
[1758131018574,0.65,236.44,236.36,5.6642277]
[1758131018774,5.6642277,236.43,236.32,14.81042654]
[1758131018973,5.6642277,236.4,236.32,14.81042654]
[1758131019209,5.6642277,236.36,236.3,4.23177136]
[1758131019405,0.65,236.39,236.29,0.03]
[1758131019714,5.6642277,236.3,236.29,0.03]
[1758131019886,6.3142277,236.3,236.29,0.03]
[1758131020306,13.59559401,236.41,236.29,0.03]
[1758131020307,0.65,236.34,236.29,0.03]
[1758131020710,5.6642277,236.35,236.29,0.03]
[1758131020890,6.3142277,236.33,236.29,0.03]
[1758131021286,5.6642277,236.31,236.29,0.03]
[1758131021479,0.65,236.32,236.29,0.03]
[1758131021811,6.3142277,236.3,236.29,0.03]
[1758131022194,0.65,236.3,236.29,0.03]
[1758131022498,6.3142277,236.3,236.29,0.03]
[1758131022675,6.3142277,236.3,236.26,0.03]